bitfinex/quotes_ETHUSD_20220310
["timestamp","ask_amount","ask_price","bid_price","bid_amount"]
[1646938616284,0.96286,2598.8,2598.3,0.92705989]
[1646938616486,3.22553,2599.2,2598.4,0.08271541]
[1646938616487,0.64544324,2598.7,2598.4,0.08271541]
[1646938616784,8.88148398,2599.3,2598.6,0.08083888]
[1646938616988,0.14543284,2599.2,2598.6,0.08083888]
[1646938617586,0.14543284,2599.2,2598.6,0.06669158]
[1646938617786,1.03136948,2599.1,2598.5,0.3858]
[1646938618185,1.03136948,2599.1,2598.5,1.3482665]
[1646938618388,1.03136948,2599.1,2598.6,0.07306474]
[1646938618587,1.03136948,2599.1,2598.7,0.00393319]
[1646938618986,5.32038398,2599.4,2598.7,0.00393319]
[1646938619223,4.61089,2599.4,2598.7,0.00393319]
[1646938619626,4.61089,2599.4,2598.6,0.09921462]
[1646938620023,4.61089,2599.4,2598.9,0.00393305]
[1646938620024,1.2219187,2599.3,2598.9,0.00393305]
[1646938620927,1.2219187,2599.3,2598.6,0.09921462]
[1646938621124,2.1844787,2599.3,2599.0,0.00142517]
[1646938621926,2.1844787,2599.3,2598.6,0.02614988]
[1646938622129,1.93141268,2599.3,2599.0,0.00142515]
[1646938622970,0.70949398,2599.2,2599.0,0.00142515]
[1646938623170,1.15113,2599.1,2598.6,0.02614988]
[1646938623371,0.89799398,2599.1,2598.6,0.02614988]
[1646938623574,0.1885,2599.1,2599.0,0.00393762]
[1646938624176,3.82241398,2599.2,2599.0,0.00393762]
[1646938624376,3.82241398,2599.2,2598.6,0.02614988]
[1646938624377,0.9627,2599.1,2598.6,0.02614988]
[1646938624577,0.70949398,2599.1,2598.6,0.02614988]
[1646938625378,0.96273,2598.8,2598.7,0.02367632]
[1646938627325,1.67224398,2599.1,2598.7,0.02367632]
[1646938627326,1.67213398,2599.1,2598.7,0.02367632]
[1646938627523,0.96264,2599.1,2598.7,0.02367632]
[1646938628328,0.70949398,2599.1,2598.8,0.00393421]
[1646938628527,1.30341745,2599.3,2598.8,0.00393421]
[1646938628528,2.01291143,2599.3,2598.8,0.00393421]
[1646938628728,2.30341745,2599.3,2598.8,0.00393421]
[1646938628928,1.96208892,2599.3,2598.8,0.00393421]
[1646938629327,1.25259494,2599.3,2598.7,0.02367632]
[1646938629528,1.2219187,2599.3,2598.9,0.00393412]
[1646938630388,1.2219187,2599.3,2598.7,0.25915723]
[1646938630589,4.6763,2599.4,2598.7,0.25915723]
[1646938630786,4.6763,2599.4,2599.0,0.0039341]
[1646938631187,0.05891338,2599.3,2598.7,0.04537234]
[1646938631485,0.05891338,2599.3,2598.9,1.13245644]
[1646938631688,3.9418,2599.6,2599.0,3.5]
[1646938631689,0.05759571,2599.6,2599.0,3.5]
[1646938631887,0.7652428,2599.8,2598.9,1.51825644]
[1646938632086,0.7652428,2599.8,2599.0,0.0627776]
[1646938632087,0.05574882,2599.8,2599.0,0.0627776]
[1646938632286,3.24668564,2599.9,2599.0,0.0627776]
[1646938632591,3.24668564,2599.9,2599.1,0.96211]
[1646938632592,2.53719166,2599.9,2599.1,0.96211]
[1646938632985,2.53719166,2599.9,2599.2,0.06205769]
[1646938633588,2.53719166,2599.9,2599.4,0.45635119]
[1646938633795,2.53719166,2599.9,2599.6,0.3858]
[1646938633992,2.53719166,2599.9,2599.6,1.15359129]
[1646938634232,2.53719166,2599.9,2599.7,0.06613173]
[1646938634433,1.0,2600.4,2599.8,0.44571787]
[1646938634832,1.0,2600.4,2599.8,1.40751787]
[1646938635134,1.0,2600.4,2600.0,2.9512753]
[1646938635532,1.0,2600.4,2600.0,3.3370753]
[1646938635734,0.01966288,2600.6,2600.2,0.06703127]
[1646938635932,0.01966288,2600.6,2600.2,1.02872127]
[1646938636136,0.01966288,2600.6,2600.2,1.41452127]
[1646938636334,0.01966288,2600.6,2600.3,0.06057421]
[1646938636534,0.72895558,2600.9,2600.3,0.06057421]
[1646938636836,0.033837,2600.9,2600.8,1.11141533]
[1646938637038,0.61423399,2600.9,2600.8,1.11141533]
[1646938637435,0.61423399,2600.9,2600.4,2.3090746]
[1646938637645,0.58039699,2600.8,2600.5,0.06723365]
[1646938638277,0.477994,2600.8,2600.5,0.06723365]
[1646938638477,0.0194616,2600.9,2600.6,0.92046768]
[1646938639079,0.00359425,2600.8,2600.6,0.92046768]
[1646938639285,0.00359425,2600.8,2600.7,3.55720678]
[1646938639683,0.00359425,2600.8,2600.7,0.05720678]
[1646938639885,0.00359425,2600.8,2600.7,3.55720678]
[1646938640085,0.0194616,2600.9,2600.7,0.05720678]
[1646938640290,0.02164658,2600.9,2600.7,0.05720678]
[1646938641185,0.0194616,2600.9,2600.7,0.05720678]
[1646938641385,0.02166919,2600.9,2600.7,0.05720678]
[1646938641631,0.02166919,2600.9,2600.6,0.92046768]
[1646938642424,0.0194616,2600.9,2600.6,0.92046768]
[1646938642624,0.02166919,2600.9,2600.6,0.92046768]
[1646938643626,0.0194616,2600.9,2600.6,0.92046768]
[1646938643925,0.0230822,2600.9,2600.6,4.42046768]
[1646938644124,0.0230822,2600.9,2600.6,4.80626768]
[1646938644328,0.0230822,2600.9,2600.7,0.06236194]
[1646938644529,0.0230822,2600.9,2600.7,1.02386804]
[1646938644927,0.0194616,2600.9,2600.7,1.02386804]
[1646938645376,0.0194616,2600.9,2600.8,0.12036874]
[1646938645873,0.0194616,2600.9,2600.8,1.08183874]
[1646938646677,0.0194616,2600.9,2600.8,4.96763874]
[1646938646877,0.0194616,2600.9,2600.8,1.46763874]
[1646938648079,0.0194616,2600.9,2600.8,0.50616874]
[1646938649133,0.0194616,2600.9,2600.8,0.12036874]
[1646938649728,0.0194616,2600.9,2600.8,0.1558434]
[1646938650928,11.77,2602.1,2601.0,29.5]
[1646938651137,2.88971446,2602.2,2601.2,3.0]
[1646938651138,0.02978272,2602.2,2601.2,3.0]
[1646938651329,0.00896252,2602.5,2602.0,3.0]
[1646938651537,0.0084622,2603.1,2602.0,3.0]
[1646938651538,0.0237946,2603.2,2602.4,0.01207247]
[1646938651730,0.0237946,2603.2,2602.6,1.31001315]
[1646938651930,0.0237946,2603.2,2602.9,0.22440488]
[1646938652149,0.0237946,2603.2,2603.0,1.41821015]
[1646938652330,0.0061516,2603.6,2603.1,31.192]
[1646938652531,0.0061516,2603.6,2603.4,1.31001315]
[1646938652731,0.0061516,2603.6,2603.5,4.155]
[1646938652732,0.0123032,2603.6,2603.5,4.155]
[1646938652976,0.0123032,2603.6,2603.5,6.09338859]
[1646938653178,0.0085272,2604.1,2603.7,0.960209]
[1646938653374,0.0085272,2604.1,2603.8,0.6548]
[1646938653576,1.70726591,2604.1,2603.7,4.801189]
[1646938653777,0.01727906,2604.1,2603.7,2.880699]
[1646938653974,0.01727906,2604.1,2603.7,0.960209]
[1646938654177,1.68998685,2604.0,2603.7,0.960209]
[1646938654377,0.01727906,2604.1,2603.7,0.960209]
[1646938654576,0.0085272,2604.1,2603.7,0.960209]
[1646938654779,1.68998685,2604.0,2603.7,0.960209]
[1646938654978,1.69218699,2604.0,2603.7,0.960209]
[1646938655379,1.68998685,2603.8,2603.6,1.9204179]
[1646938655581,1.68998685,2603.8,2603.3,1.9213137]
[1646938655782,1.68998685,2603.5,2603.2,0.1919]
[1646938656279,0.04673098,2604.0,2603.2,0.1919]
[1646938656634,1.68998685,2603.4,2603.2,0.1919]
[1646938656920,1.73582815,2603.4,2602.6,3.5]
[1646938657119,0.04386008,2603.3,2602.6,3.5]
[1646938657320,1.68998685,2602.7,2602.6,3.5]
[1646938657823,0.4144,2603.4,2602.5,3.8423474]
[1646938658019,0.00371683,2603.7,2602.7,1.92176]
[1646938658020,1.68998685,2603.6,2602.7,1.92176]
[1646938658224,1.68998685,2603.6,2602.8,3.56973251]
[1646938658427,1.68998685,2603.6,2602.9,0.08036955]
[1646938658627,0.0148672,2603.2,2602.6,0.06964148]
[1646938659126,0.0148672,2603.2,2603.0,0.9607903]
[1646938659523,1.68998685,2603.6,2603.3,0.10497018]
[1646938660374,0.04492468,2603.6,2603.3,0.10497018]
[1646938660576,2.92486799,2603.5,2603.3,0.10497018]
[1646938661274,0.6041263,2603.5,2603.4,0.53649427]
[1646938661477,0.01342922,2604.0,2603.4,0.53649427]
[1646938661675,0.01342922,2604.0,2603.4,0.30468038]
[1646938661875,0.3943272,2604.1,2603.4,0.30468038]
[1646938662074,1.18938515,2603.5,2603.4,0.30468038]
[1646938662275,0.93135101,2603.6,2603.4,0.30468038]
[1646938662475,1.20525245,2603.6,2603.4,0.30468038]
[1646938663880,0.3943272,2604.1,2603.4,0.30468038]
[1646938664126,0.9609,2603.9,2603.4,0.30468038]
[1646938664531,0.00395877,2603.7,2603.4,0.30468038]
[1646938664931,1.19294626,2603.6,2603.4,0.30468038]
[1646938665330,1.19294626,2603.6,2603.4,0.41029512]
[1646938665830,0.00395877,2603.7,2603.4,0.41029512]
[1646938666035,0.00395877,2603.7,2603.6,0.92522738]
[1646938666632,0.9609,2603.9,2603.6,0.92522738]
[1646938666835,0.00395884,2603.8,2603.6,0.92522738]
[1646938667033,0.00395884,2603.8,2603.7,1.51254175]
[1646938667232,0.00395884,2603.8,2603.4,0.10561474]
[1646938667631,0.96095,2603.7,2603.4,0.10561474]
[1646938667880,0.96095,2603.7,2603.3,0.03498033]
[1646938667881,1.03133914,2603.6,2603.3,0.03498033]
[1646938668082,12.233,2603.5,2603.3,0.03498033]
[1646938668281,12.533,2603.5,2603.3,8.033e-05]
[1646938668481,12.533,2603.5,2601.9,0.192]
[1646938668482,0.0008,2603.0,2601.9,0.192]
[1646938668684,0.96136,2602.6,2601.8,0.08962658]
[1646938669082,0.3465,2602.7,2601.8,1.05093948]
[1646938669285,0.3465,2602.7,2601.7,0.00283112]
[1646938669286,0.0008,2603.0,2601.7,3.50283112]
[1646938669486,0.0008,2603.0,2601.9,0.32449534]
[1646938669690,0.0008,2603.0,2601.7,0.19483112]
[1646938669888,0.0008,2603.0,2601.7,0.192]
[1646938670089,0.0008,2603.0,2601.6,0.08381108]
[1646938670090,0.96209,2603.0,2601.6,0.00382733]
[1646938670293,0.96209,2603.0,2601.1,3.5]
[1646938670294,1.00339843,2601.4,2601.1,3.5]
[1646938670491,1.0278,2601.4,2601.1,0.1921]
[1646938670693,0.96184,2601.3,2600.3,0.27841138]
[1646938670889,0.96184,2601.3,2600.4,0.07133376]
[1646938671090,0.96184,2601.3,2600.5,0.1922]
[1646938671291,0.96184,2601.3,2600.4,0.07810341]
[1646938671490,3.5,2601.2,2600.5,0.1922]
[1646938671726,3.5,2601.2,2600.2,1.923593]
[1646938671727,0.96191,2601.0,2599.9,0.07802058]
[1646938671928,0.04840584,2600.8,2599.8,0.10693025]
[1646938672926,0.1922,2601.4,2599.8,1.13796165]
[1646938672927,3.6922,2601.4,2599.8,1.13796165]
[1646938673125,0.0514892,2601.3,2599.9,0.27486574]
[1646938673326,5.72377,2601.4,2600.2,0.00335296]
[1646938673527,0.24198108,2601.3,2600.2,0.00335296]
[1646938673932,0.96196,2601.2,2600.2,0.00335296]
[1646938674128,4.19861837,2601.1,2600.2,0.00335296]
[1646938674333,3.05359434,2601.0,2600.2,0.00209492]
[1646938674534,3.05359434,2601.0,2599.3,0.08762678]
[1646938674535,5.3313382,2600.9,2600.6,0.00335276]
[1646938674732,0.05100134,2600.8,2600.6,0.06134296]
[1646938674931,0.1892,2600.7,2600.6,0.06134296]
[1646938675130,3.74199109,2600.7,2599.1,1.9243447]
[1646938675373,3.74199109,2600.7,2599.2,0.26505868]
[1646938675374,0.96229,2600.3,2599.2,0.26505868]
[1646938675574,0.05254286,2600.1,2599.3,0.9622056]
[1646938675974,0.04587292,2600.3,2599.3,0.9622056]
[1646938676176,1.16041349,2599.4,2599.2,0.1923]
[1646938676580,1.16041349,2599.4,2599.1,0.27979594]
[1646938676774,1.16041349,2599.4,2598.9,0.08056096]
[1646938678075,0.96245,2599.6,2598.9,0.08056096]
[1646938678076,1.01353022,2599.0,2598.9,0.08056096]
[1646938678277,0.96245,2599.6,2598.9,0.08056096]
[1646938678677,1.92493,2600.2,2598.9,0.08056096]
[1646938678678,2.7758,2600.3,2598.9,0.08056096]
[1646938678877,2.7758,2600.3,2598.8,3.5]
[1646938678878,0.23747612,2600.2,2599.1,0.0879357]
[1646938679133,0.1923,2600.2,2598.8,1.00119897]
[1646938679324,0.235893,2600.6,2598.9,1.26046358]
[1646938679525,0.92684281,2599.6,2599.0,0.08497795]
[1646938679727,0.92684281,2599.6,2599.5,0.03413304]
[1646938681027,0.96236,2599.8,2599.5,0.03413304]
[1646938681228,0.04250055,2600.0,2599.5,0.03413304]
[1646938681427,0.1923,2600.2,2599.5,0.03413304]
[1646938681828,0.01738237,2600.3,2599.5,0.03413304]
[1646938682029,0.01738237,2600.3,2599.6,0.96198]
[1646938682231,1.19661047,2600.2,2599.7,0.08920421]
[1646938682878,1.19661047,2600.2,2599.5,1.95816764]
[1646938682879,1.20320641,2600.1,2599.8,0.00395801]
[1646938683076,0.0506455,2600.0,2599.8,0.00395801]
[1646938683678,0.0506455,2600.0,2599.5,0.03413304]
[1646938684078,0.0506455,2600.0,2599.8,0.00395804]
[1646938684983,1.3988255,2600.0,2599.5,0.03413304]
[1646938685183,0.04387519,2599.9,2599.8,0.00382445]
[1646938685986,0.23694415,2600.1,2599.8,0.00382445]
[1646938686186,0.23694415,2600.1,2599.4,0.06722809]
[1646938686386,0.1877,2600.1,2599.7,0.00382448]
[1646938686638,1.19661047,2600.2,2599.7,0.96596918]
[1646938686831,1.19661047,2600.2,2599.7,4.46596918]
[1646938687027,1.19661047,2600.2,2599.7,0.96596918]
[1646938687428,1.19661047,2600.2,2599.7,0.9621447]
[1646938687629,0.04178134,2600.6,2599.8,0.00382443]
[1646938687830,0.04178134,2600.6,2600.0,0.962009]
[1646938688229,1.58392586,2600.9,2600.0,0.962009]
[1646938688429,0.05077118,2600.8,2600.0,0.962009]
[1646938688731,1.54005,2600.9,2600.1,3.56953969]
[1646938688732,1.24703178,2600.9,2600.1,3.56953969]
[1646938688930,1.05483178,2600.9,2600.2,0.00368179]
[1646938689130,1.05483178,2600.9,2600.3,0.9618254]
[1646938689732,1.05483178,2600.9,2600.2,1.9236507]
[1646938690132,1.05483178,2600.9,2600.5,0.00368165]
[1646938690376,0.1922,2601.4,2600.5,0.00368165]
[1646938690377,0.23590296,2601.4,2600.5,0.00368165]
[1646938690576,0.04370296,2601.4,2600.5,0.08481697]
[1646938690978,0.04370296,2601.4,2600.5,0.08113532]
[1646938691282,0.98624717,2601.3,2600.6,0.96164]
[1646938691482,0.98624717,2601.3,2600.7,1.03693756]
[1646938692078,0.23634113,2601.6,2600.7,1.03693756]
[1646938692284,0.04614113,2601.6,2600.8,1.99897465]
[1646938692682,1.0,2601.7,2601.0,0.08150546]
[1646938693079,0.00370088,2601.9,2601.1,0.96139]
[1646938693080,1.19656094,2601.9,2601.1,0.96139]
[1646938693279,1.19656094,2601.9,2601.3,0.07571184]
[1646938693481,1.19286006,2601.9,2601.3,0.07571184]
[1646938693681,1.19656128,2601.9,2601.3,0.07571184]
[1646938694326,1.19656128,2601.9,2601.3,1.03719034]
[1646938694532,0.00370122,2601.9,2601.4,0.08521895]
[1646938694729,1.0,2602.2,2601.4,0.08521895]
[1646938695029,0.00370146,2601.9,2601.4,0.08521895]
[1646938695428,0.00370146,2601.9,2601.3,0.92975403]
[1646938695729,0.00370146,2601.9,2601.4,0.07589165]
[1646938695930,1.0,2602.2,2601.4,0.07589165]
[1646938696131,0.00369844,2601.9,2601.4,0.07589165]
[1646938697135,1.192,2602.2,2601.4,0.07589165]
[1646938697331,0.00369844,2601.9,2601.4,1.99869605]
[1646938697977,0.00369844,2601.9,2601.6,0.0775384]
[1646938698179,0.99305811,2602.3,2601.6,0.0775384]
[1646938698581,0.00369844,2601.9,2601.8,0.08263618]
[1646938699380,0.99305811,2602.3,2601.8,0.08263618]
[1646938699582,0.192,2602.5,2601.8,0.08263618]
[1646938699785,0.00369889,2602.0,2601.8,0.08263618]
[1646938700183,0.00369889,2602.0,2601.9,0.08700432]
[1646938700583,0.1904,2602.9,2601.9,3.58700432]
[1646938700782,0.92924844,2602.8,2602.0,0.08414324]
[1646938700981,0.0147924,2602.6,2602.0,0.08414324]
[1646938701282,0.0147924,2602.6,2602.2,0.0896405]
[1646938701484,0.0147924,2602.6,2602.2,3.5896405]
[1646938701753,0.0147924,2602.6,2602.3,0.08953188]
[1646938702052,0.92924844,2602.8,2602.3,0.08953188]
[1646938702053,0.00252114,2602.5,2602.3,0.08953188]
[1646938703054,0.92924844,2602.8,2602.3,0.08953188]
[1646938703254,0.00370217,2602.5,2602.3,0.961059]
[1646938704254,0.92924844,2602.8,2602.3,0.961059]
[1646938704456,0.00370217,2602.5,2602.3,0.961059]
[1646938704654,0.00370217,2602.5,2602.2,1.922118]
[1646938704856,0.00370217,2602.5,2601.8,0.08283402]
[1646938705059,0.00370217,2602.5,2601.6,0.08829049]
[1646938705257,0.05359152,2602.3,2601.6,0.08829049]
[1646938705896,0.05729381,2602.3,2601.6,0.08829049]
[1646938706096,0.00370229,2602.3,2602.2,0.04452956]
[1646938706696,2.789,2602.7,2602.2,0.04452956]
[1646938706897,0.97059184,2602.8,2602.2,0.04452956]
[1646938707097,0.00251754,2602.4,2602.2,0.04452956]
[1646938707894,0.28721825,2602.7,2602.2,0.04452956]
[1646938708094,0.00251754,2602.4,2602.2,0.04452956]
[1646938709136,0.28721825,2602.7,2602.2,0.04452956]
[1646938709340,0.00251754,2602.4,2602.2,0.04452956]
[1646938710139,0.00251754,2602.4,2602.1,0.17376293]
[1646938710445,0.28721825,2602.6,2602.1,0.17376293]
[1646938710642,0.00366661,2602.4,2602.1,0.17376293]
[1646938711648,0.28721825,2602.5,2602.1,0.17376293]
[1646938711847,0.00366664,2602.4,2602.1,0.17376293]
[1646938712249,0.00366664,2602.4,2602.1,2.63905925]
[1646938712446,0.00366664,2602.4,2602.3,0.07372159]
[1646938712648,5.65642616,2603.2,2602.3,0.07372159]
[1646938712911,0.28743593,2603.1,2602.5,0.9609283]
[1646938713211,1.02553798,2602.9,2602.5,0.9609283]
[1646938713407,1.02553798,2602.9,2602.4,1.9218565]
[1646938713408,0.01466434,2602.8,2602.4,1.9218565]
[1646938713607,0.01466434,2602.8,2602.1,0.17376293]
[1646938713608,0.28752032,2602.7,2602.1,0.17376293]
[1646938713805,0.71899481,2602.7,2602.1,0.17376293]
[1646938714006,0.33823036,2602.6,2602.1,0.17376293]
[1646938714207,0.05071004,2602.6,2602.1,0.17376293]
[1646938714606,0.93652582,2602.5,2602.3,0.08486789]
[1646938715008,0.05071004,2602.6,2602.3,0.08486789]
[1646938715210,0.96127,2602.8,2602.3,0.08486789]
[1646938715409,0.1912,2602.9,2602.3,0.05363149]
[1646938715410,0.00342675,2602.5,2602.3,0.05363149]
[1646938716409,1.35785472,2602.8,2602.3,0.05363149]
[1646938716627,0.00342675,2602.5,2602.3,0.05363149]
[1646938717231,0.00342675,2602.5,2602.3,1.01476339]
[1646938717631,0.0008,2603.0,2602.3,1.01476339]
[1646938717837,0.00342675,2602.5,2602.3,1.01476339]
[1646938718032,0.00342675,2602.5,2602.3,0.05363149]
[1646938718635,0.00342675,2602.5,2602.3,6.97180913]
[1646938718847,0.0008,2603.0,2602.3,6.97180913]
[1646938718848,0.0008,2603.0,2602.4,3.87081518]
[1646938719046,0.0008,2603.0,2602.6,2.08075651]
[1646938719243,0.01357031,2602.9,2602.7,3.5]
[1646938719641,0.01357031,2602.9,2602.7,5.42147]
[1646938719843,0.01357031,2602.9,2602.7,2.92147]
[1646938720046,0.0008,2603.0,2602.7,1.0]
[1646938720249,0.00221063,2602.9,2602.4,0.46451799]
[1646938721091,0.0008,2603.0,2602.5,0.9610429]
[1646938721486,0.00221063,2602.8,2602.4,0.16451799]
[1646938722087,0.00221063,2602.8,2602.5,0.9610544]
[1646938722287,0.28654935,2603.0,2602.5,0.9610544]
[1646938722687,0.00381192,2602.7,2602.5,0.9610544]
[1646938723691,0.0008,2603.0,2602.5,0.9610544]
[1646938723987,0.00381192,2602.7,2602.5,0.9610544]
[1646938724433,0.00381192,2602.7,2602.6,0.07074014]
[1646938724832,0.0008,2603.0,2602.6,0.07074014]
[1646938725035,0.00381192,2602.7,2602.6,0.07074014]
[1646938725439,0.00381192,2602.7,2602.6,0.15351984]
[1646938726040,0.0008,2603.0,2602.6,0.15351984]
[1646938726249,0.00363138,2602.8,2602.6,0.0827797]
[1646938727242,0.28604906,2602.9,2602.6,0.0827797]
[1646938727443,0.0008,2603.0,2602.6,0.0827797]
[1646938727444,0.28955177,2602.8,2602.6,0.0827797]
[1646938727643,0.28604906,2602.7,2602.6,0.0827797]
[1646938727879,0.47734906,2602.7,2602.6,0.0827797]
[1646938729384,0.28604906,2602.7,2602.6,0.0827797]
[1646938729984,0.28604906,2602.7,2602.6,0.04176704]
[1646938730184,1.24742906,2602.7,2602.6,0.04176704]
[1646938730588,1.24742906,2602.7,2602.6,6.704e-05]
[1646938730887,2.14200802,2602.7,2602.6,6.704e-05]
[1646938731289,1.43862906,2602.7,2602.6,6.704e-05]
[1646938732235,2.43862906,2602.7,2602.6,6.704e-05]
[1646938733440,3.37732579,2602.7,2602.6,6.704e-05]
[1646938733641,2.43862906,2602.7,2602.6,6.704e-05]
[1646938734542,3.67732579,2602.7,2602.6,6.704e-05]
[1646938734942,2.73862906,2602.7,2602.5,0.15849913]
[1646938735142,1.22986228,2602.6,2602.5,0.15849913]
[1646938735380,1.22986228,2602.6,2602.5,0.10045346]
[1646938736384,0.28604906,2602.6,2602.5,0.10045346]
[1646938737989,1.27503857,2602.6,2602.5,0.10045346]
[1646938738189,0.28604906,2602.6,2602.5,0.10045346]
[1646938738388,0.33727487,2602.6,2602.5,0.10045346]
[1646938739833,0.35837559,2602.6,2602.5,0.07823784]
[1646938740031,0.30714978,2602.6,2602.5,0.07823784]
[1646938740233,0.00076216,2602.5,2602.4,0.0385337]
[1646938740436,15.52508165,2602.5,2602.4,0.0385337]
[1646938740634,12.05681122,2602.5,2602.4,0.0385337]
[1646938741237,13.05681122,2602.5,2602.4,0.0385337]
[1646938742888,13.05604906,2602.5,2602.4,0.0385337]
[1646938743486,1.28604906,2602.5,2602.4,0.0385337]
[1646938743887,2.23189288,2602.5,2602.4,0.0385337]
[1646938744085,0.28604906,2602.5,2602.4,0.0385337]
[1646938744385,0.94582469,2602.5,2602.4,0.0385337]
[1646938744586,1.23187375,2602.5,2602.4,0.0385337]
[1646938745385,1.23187375,2602.5,2602.4,0.0721991]
[1646938747433,0.28604906,2602.5,2602.4,0.0721991]
[1646938748132,0.99529612,2602.5,2602.4,0.0721991]
[1646938748731,0.28604906,2602.5,2602.4,0.0721991]
[1646938749130,1.23187375,2602.5,2602.4,0.0721991]
[1646938749735,0.28604906,2602.5,2602.4,0.0721991]
[1646938750136,0.28604906,2602.5,2601.3,2.3071242]
[1646938750137,12.1558,2602.3,2601.3,0.3844]
[1646938750405,0.7093862,2602.0,2601.4,1.28438172]
[1646938750594,0.99543526,2602.0,2601.4,1.28438172]
[1646938750795,0.7093862,2601.9,2601.3,0.3844]
[1646938751195,1.14709916,2601.8,2601.3,0.3844]
[1646938751394,1.24775906,2601.7,2601.2,0.192]
[1646938751624,0.28604906,2601.6,2601.3,1.2844041]
[1646938752094,0.28604906,2601.5,2601.3,1.2844041]
[1646938752292,1.35979046,2601.4,2601.2,0.192]
[1646938752497,0.28604906,2601.3,2601.2,0.192]
[1646938753795,0.28604906,2601.3,2601.2,0.8501978]
[1646938755440,11.5,2601.2,2600.9,4.75190934]
[1646938755645,3.78604906,2601.1,2600.9,4.75190934]
[1646938755841,0.28604906,2601.0,2600.5,0.00340337]
[1646938756042,3.5,2601.1,2600.3,0.08763878]
[1646938756043,0.28604906,2600.9,2600.3,0.08763878]
[1646938756342,1.12880961,2600.4,2600.0,0.07522125]
[1646938756540,1.12880961,2600.4,2600.1,1.31077249]
[1646938756743,1.12880961,2600.4,2600.2,0.09046124]
[1646938757141,3.5,2600.9,2600.0,0.07206604]
[1646938757345,0.25245713,2600.8,2600.2,0.08019788]
[1646938757544,0.25245713,2600.8,2600.3,1.30970562]
[1646938757742,0.25245713,2600.8,2600.2,0.00340299]
[1646938757984,0.25245713,2600.8,2600.2,0.09207244]
[1646938758183,0.25245713,2600.8,2600.2,0.00340299]
[1646938758385,1.09744331,2600.7,2600.1,1.30913388]
[1646938758583,1.09744331,2600.7,2600.2,0.07930179]
[1646938758784,1.09744331,2600.7,2600.4,0.0034029]
[1646938759387,1.09744331,2600.7,2600.4,0.08307765]
[1646938759587,1.09744331,2600.7,2600.4,0.07967475]
[1646938759789,1.09744331,2600.7,2600.6,0.08837549]
[1646938761393,1.34952815,2600.7,2600.6,0.08837549]
[1646938761633,1.349527,2600.7,2600.6,0.08837549]
[1646938762032,1.34945572,2600.7,2600.6,0.08837549]
[1646938762238,1.09744331,2600.7,2600.6,0.08837549]
[1646938765688,1.37045305,2600.7,2600.6,0.13685441]
[1646938768890,1.11835833,2600.7,2600.6,0.13685441]
[1646938769138,1.37039225,2600.7,2600.6,0.13685441]
[1646938769944,1.37039225,2600.7,2600.6,0.09101359]
[1646938771345,0.27294894,2600.7,2600.6,0.09101359]
[1646938771748,0.02091502,2600.7,2600.6,0.09101359]
[1646938772544,1.2259254,2600.7,2600.6,0.09101359]
[1646938773985,0.02091502,2600.7,2600.6,0.09101359]
[1646938774390,0.02091502,2600.7,2600.6,1.78745892]
[1646938774589,0.02091502,2600.7,2600.6,1.40165892]
[1646938774789,0.02091502,2600.7,2600.6,0.59803566]
[1646938774992,0.02091502,2600.7,2600.6,0.13503566]
[1646938775695,0.92651889,2601.2,2600.7,0.01426615]
[1646938775892,0.25001292,2601.1,2600.7,0.01426615]
[1646938776735,1.00808879,2600.8,2600.7,0.01426615]
[1646938778037,1.25818314,2600.8,2600.7,0.01426615]
[1646938782199,5.72017314,2600.8,2600.7,0.01426615]
[1646938782596,6.06411679,2600.8,2600.7,0.01426615]
[1646938784439,6.02017314,2600.8,2600.7,0.01426615]
[1646938785040,6.96602141,2600.8,2600.7,0.01426615]
[1646938785241,18.79017314,2600.8,2600.7,0.01426615]
[1646938785441,20.58939642,2600.8,2600.7,0.1397701]
[1646938785641,19.62740642,2600.8,2600.7,0.1397701]
[1646938785840,19.62740642,2600.8,2600.5,0.00340301]
[1646938785841,49.77,2600.7,2600.5,0.00340301]
[1646938786040,6.21926375,2600.6,2600.5,0.00340301]
[1646938786243,0.3858,2600.4,2599.6,0.00119897]
[1646938786440,0.3858,2600.2,2599.5,0.21211261]
[1646938786640,0.9523995,2599.6,2599.5,0.21211261]
[1646938787040,3.5,2600.1,2599.5,1.52665692]
[1646938787241,0.24879564,2600.0,2599.5,0.21211261]
[1646938787440,5.42461,2600.3,2599.6,1.31406974]
[1646938787640,0.24881896,2600.2,2599.7,0.08869244]
[1646938787895,0.24881896,2600.2,2599.5,0.13819997]
[1646938788084,0.24881896,2600.2,2599.7,0.08520725]
[1646938788085,0.91129237,2600.1,2599.7,0.08520725]
[1646938788283,0.91129237,2600.1,2599.5,0.22176628]
[1646938788483,0.91129237,2600.1,2599.7,0.08682766]
[1646938788888,0.91129237,2600.1,2599.7,0.09023675]
[1646938789085,3.2528,2600.4,2599.7,0.00340909]
[1646938789292,0.24874518,2600.3,2599.7,0.07397531]
[1646938789588,0.24874518,2600.3,2599.7,0.00340909]
[1646938789790,0.24874518,2600.3,2599.6,1.31340343]
[1646938789991,0.24874518,2600.3,2599.9,0.00340902]
[1646938790188,0.98634063,2600.2,2599.9,0.00340902]
[1646938790389,3.74883269,2600.1,2599.9,0.00340902]
[1646938790589,0.98634063,2600.2,2599.9,0.00340902]
[1646938790789,0.24883661,2600.1,2599.9,0.00340902]
[1646938790992,0.24883661,2600.1,2599.8,0.9619765]
[1646938791191,0.24883661,2600.1,2599.9,0.00341424]
[1646938792236,0.24883661,2600.1,2599.7,1.0327007]
[1646938792436,0.24883661,2600.1,2599.9,0.00341424]
[1646938793437,0.24883661,2600.1,2599.8,1.31550801]
[1646938793639,0.24883661,2600.1,2599.9,0.00341424]
[1646938794441,0.24883661,2600.1,2600.0,0.10774283]
[1646938795688,0.24883661,2600.1,2600.0,0.0736337]
[1646938798696,3.30766892,2600.1,2600.0,0.0736337]
[1646938798893,4.01529504,2600.1,2600.0,0.0736337]
[1646938799139,4.20759504,2600.1,2600.0,0.0736337]
[1646938799748,1.14876273,2600.1,2600.0,0.10648704]
[1646938800149,1.14876273,2600.1,2599.1,0.08112475]
[1646938800150,36.3858,2600.0,2599.1,0.08112475]
[1646938800345,1.34829,2599.8,2599.2,1.31960043]
[1646938800545,0.24883661,2599.7,2599.2,1.31960043]
[1646938800945,0.24883661,2599.7,2599.3,1.31960043]
[1646938801148,0.24883661,2599.7,2599.4,1.31960043]
[1646938801350,0.24883661,2599.6,2599.5,1.31960043]
[1646938801547,0.24719463,2599.6,2599.5,1.31960043]
[1646938801850,4.0645,2600.1,2599.2,0.07036378]
[1646938802046,0.98634063,2600.2,2599.2,0.07036378]
[1646938802248,0.98634063,2600.2,2599.4,0.00381035]
[1646938803189,1.1656,2600.3,2599.8,0.01244968]
[1646938803589,0.70762612,2600.6,2599.8,0.01244968]
[1646938803790,0.70762612,2600.6,2599.7,0.0756483]
[1646938803987,3.1591,2600.8,2599.7,0.0756483]